[Event "*** Titled Tuesday Blitz"]
[Site "Chess.com"]
[Date "2020.02.04"]
[Round "5"]
[White "Gabrielian_Artur"]
[Black "jguerramzllo"]
[Result "1/2-1/2"]
[WhiteElo "2763"]
[BlackElo "2514"]
[TimeControl "180+2"]
[EndTime "14:10:17 PST"]
[Termination "Game drawn by stalemate"]

1. e4 {[%clk 0:03:01.9]} 1... e5 {[%clk 0:03:00.5]} 2. Nf3 {[%clk 0:03:02.1]}
2... Nc6 {[%clk 0:03:01.6]} 3. Bc4 {[%clk 0:03:01.9]} 3... Bc5 {[%clk
0:03:01.8]} 4. d3 {[%clk 0:03:02.9]} 4... Nf6 {[%clk 0:03:01.2]} 5. Bg5 {[%clk
0:03:04]} 5... h6 {[%clk 0:03:02.1]} 6. Bh4 {[%clk 0:03:04.9]} 6... Be7 {[%clk
0:03:03.7]} 7. Bg3 {[%clk 0:03:03.8]} 7... d6 {[%clk 0:03:04.8]} 8. a4 {[%clk
0:03:04.3]} 8... O-O {[%clk 0:03:05.1]} 9. Nc3 {[%clk 0:03:01.5]} 9... Be6
{[%clk 0:02:57.5]} 10. Nd5 {[%clk 0:02:58.2]} 10... Bxd5 {[%clk 0:02:51.7]} 11.
exd5 {[%clk 0:02:56.2]} 11... Nb4 {[%clk 0:02:46]} 12. Nh4 {[%clk 0:02:44.3]}
12... Nbxd5 {[%clk 0:02:30.1]} 13. Nf5 {[%clk 0:02:45.2]} 13... Nf4 {[%clk
0:02:26.1]} 14. Qf3 {[%clk 0:02:40.7]} 14... d5 {[%clk 0:02:25.9]} 15. Bb3
{[%clk 0:02:41.2]} 15... Bd6 {[%clk 0:02:18.5]} 16. O-O {[%clk 0:02:32]} 16...
c6 {[%clk 0:02:17.9]} 17. Rfe1 {[%clk 0:02:28.1]} 17... Kh7 {[%clk 0:02:00.3]}
18. d4 {[%clk 0:02:19.6]} 18... e4 {[%clk 0:02:00.9]} 19. Qd1 {[%clk 0:02:17.8]}
19... Bc7 {[%clk 0:01:55.9]} 20. c4 {[%clk 0:01:52.3]} 20... g6 {[%clk
0:01:29.9]} 21. Ne3 {[%clk 0:01:52]} 21... Nd3 {[%clk 0:01:23.9]} 22. Re2 {[%clk
0:01:51.7]} 22... Bxg3 {[%clk 0:01:24]} 23. hxg3 {[%clk 0:01:53]} 23... dxc4
{[%clk 0:01:23.4]} 24. Bxc4 {[%clk 0:01:53.2]} 24... Qxd4 {[%clk 0:01:24.3]} 25.
Qb3 {[%clk 0:01:37.6]} 25... Nc5 {[%clk 0:01:14.1]} 26. Qa3 {[%clk 0:01:35.2]}
26... Kg7 {[%clk 0:01:14.1]} 27. Rd1 {[%clk 0:01:32.8]} 27... Qe5 {[%clk
0:01:12.8]} 28. b4 {[%clk 0:01:33.9]} 28... Ne6 {[%clk 0:01:11.6]} 29. Bxe6
{[%clk 0:01:32]} 29... Qxe6 {[%clk 0:01:12.2]} 30. Red2 {[%clk 0:01:33.5]} 30...
Qe7 {[%clk 0:01:08.8]} 31. Qc3 {[%clk 0:01:34]} 31... Rfe8 {[%clk 0:01:07.8]}
32. Rd7 {[%clk 0:01:33.5]} 32... Qe5 {[%clk 0:01:02.9]} 33. Qxe5 {[%clk
0:01:29.3]} 33... Rxe5 {[%clk 0:01:04.8]} 34. Rxb7 {[%clk 0:01:30.1]} 34... a5
{[%clk 0:01:06.3]} 35. Nc4 {[%clk 0:01:27.5]} 35... Re6 {[%clk 0:00:55.1]} 36.
Nd6 {[%clk 0:00:57.5]} 36... Kg8 {[%clk 0:00:53.6]} 37. Nxf7 {[%clk 0:00:57.8]}
37... axb4 {[%clk 0:00:47.4]} 38. Nd8 {[%clk 0:00:57.4]} 38... Re8 {[%clk
0:00:43.3]} 39. Nxc6 {[%clk 0:00:57.9]} 39... Rxa4 {[%clk 0:00:40.6]} 40. Nxb4
{[%clk 0:00:52.6]} 40... Rea8 {[%clk 0:00:29.2]} 41. Nc2 {[%clk 0:00:42.5]}
41... Ng4 {[%clk 0:00:25]} 42. Ne3 {[%clk 0:00:25.5]} 42... Nxe3 {[%clk
0:00:25]} 43. fxe3 {[%clk 0:00:26.8]} 43... Ra1 {[%clk 0:00:25.5]} 44. Rd7
{[%clk 0:00:17.8]} 44... Rxd1+ {[%clk 0:00:25.4]} 45. Rxd1 {[%clk 0:00:19.3]}
45... Ra3 {[%clk 0:00:25.9]} 46. Kf2 {[%clk 0:00:20.4]} 46... Ra2+ {[%clk
0:00:26.9]} 47. Kf1 {[%clk 0:00:21.8]} 47... Ra3 {[%clk 0:00:25]} 48. Ke2 {[%clk
0:00:23]} 48... Ra2+ {[%clk 0:00:15.6]} 49. Rd2 {[%clk 0:00:24]} 49... Ra4
{[%clk 0:00:08.9]} 50. Rd4 {[%clk 0:00:21.1]} 50... Ra2+ {[%clk 0:00:08.5]} 51.
Kf1 {[%clk 0:00:22.5]} 51... Ra1+ {[%clk 0:00:09.3]} 52. Kf2 {[%clk 0:00:23.9]}
52... Ra2+ {[%clk 0:00:10.4]} 53. Kg1 {[%clk 0:00:25.3]} 53... Kf7 {[%clk
0:00:10]} 54. Rxe4 {[%clk 0:00:26.4]} 54... Kf6 {[%clk 0:00:11.1]} 55. Rf4+
{[%clk 0:00:27.3]} 55... Ke5 {[%clk 0:00:11.7]} 56. Rf8 {[%clk 0:00:26.4]} 56...
Re2 {[%clk 0:00:11.1]} 57. Re8+ {[%clk 0:00:21.4]} 57... Kf5 {[%clk 0:00:12.3]}
58. Kf1 {[%clk 0:00:22.7]} 58... Ra2 {[%clk 0:00:12.2]} 59. Kg1 {[%clk
0:00:22.7]} 59... g5 {[%clk 0:00:10.9]} 60. Rh8 {[%clk 0:00:20.9]} 60... Kg6
{[%clk 0:00:10.3]} 61. e4 {[%clk 0:00:20.6]} 61... Re2 {[%clk 0:00:11.2]} 62.
Re8 {[%clk 0:00:21.3]} 62... Kf7 {[%clk 0:00:12.4]} 63. Re5 {[%clk 0:00:22.2]}
63... Kf6 {[%clk 0:00:13.2]} 64. Rf5+ {[%clk 0:00:20.9]} 64... Kg6 {[%clk
0:00:13.4]} 65. Re5 {[%clk 0:00:22.1]} 65... Kf6 {[%clk 0:00:14]} 66. Re8 {[%clk
0:00:23.6]} 66... Kf7 {[%clk 0:00:14.9]} 67. Kf1 {[%clk 0:00:25]} 67... Re3
{[%clk 0:00:12.4]} 68. Kf2 {[%clk 0:00:25.3]} 68... Ra3 {[%clk 0:00:10.6]} 69.
Rh8 {[%clk 0:00:25.6]} 69... Kg7 {[%clk 0:00:11.3]} 70. Rb8 {[%clk 0:00:26.6]}
70... h5 {[%clk 0:00:09.7]} 71. Rd8 {[%clk 0:00:21.6]} 71... h4 {[%clk
0:00:07.5]} 72. gxh4 {[%clk 0:00:21.3]} 72... gxh4 {[%clk 0:00:08.5]} 73. Rd5
{[%clk 0:00:13.4]} 73... Kg6 {[%clk 0:00:09.3]} 74. Kg1 {[%clk 0:00:14]} 74...
h3 {[%clk 0:00:10.1]} 75. gxh3 {[%clk 0:00:14.2]} 75... Rxh3 {[%clk 0:00:11.1]}
76. Kf2 {[%clk 0:00:15.6]} 76... Kf6 {[%clk 0:00:11]} 77. Ra5 {[%clk 0:00:16.5]}
77... Ke6 {[%clk 0:00:10.8]} 78. Ke2 {[%clk 0:00:17.5]} 78... Rb3 {[%clk
0:00:10.9]} 79. Kd2 {[%clk 0:00:18.5]} 79... Rh3 {[%clk 0:00:11.8]} 80. Rg5
{[%clk 0:00:18.9]} 80... Rf3 {[%clk 0:00:12.3]} 81. Ke2 {[%clk 0:00:19.1]} 81...
Ra3 {[%clk 0:00:13.3]} 82. Rg8 {[%clk 0:00:19.3]} 82... Rb3 {[%clk 0:00:12.7]}
83. Re8+ {[%clk 0:00:20.2]} 83... Kf7 {[%clk 0:00:13.7]} 84. Re5 {[%clk
0:00:20.6]} 84... Kf6 {[%clk 0:00:14.9]} 85. Rd5 {[%clk 0:00:22]} 85... Ke6
{[%clk 0:00:15.9]} 86. Kd2 {[%clk 0:00:23]} 86... Rh3 {[%clk 0:00:16.1]} 87. Ra5
{[%clk 0:00:21.7]} 87... Rg3 {[%clk 0:00:16.4]} 88. Ke2 {[%clk 0:00:20.7]} 88...
Rh3 {[%clk 0:00:17.2]} 89. Kf2 {[%clk 0:00:21.8]} 89... Rb3 {[%clk 0:00:17.8]}
90. Rd5 {[%clk 0:00:22.6]} 90... Ra3 {[%clk 0:00:18.6]} 91. Ke2 {[%clk
0:00:23.3]} 91... Rb3 {[%clk 0:00:19.8]} 92. Rd3 {[%clk 0:00:23]} 92... Rxd3
{[%clk 0:00:19.8]} 93. Kxd3 {[%clk 0:00:24.4]} 93... Ke5 {[%clk 0:00:21.2]} 94.
Ke3 {[%clk 0:00:25.9]} 94... Ke6 {[%clk 0:00:22.3]} 95. Kd4 {[%clk 0:00:27.3]}
95... Kd6 {[%clk 0:00:23.3]} 96. e5+ {[%clk 0:00:28.8]} 96... Ke6 {[%clk
0:00:24.6]} 97. Ke4 {[%clk 0:00:30.2]} 97... Ke7 {[%clk 0:00:25.6]} 98. Kd5
{[%clk 0:00:31.7]} 98... Kd7 {[%clk 0:00:26.7]} 99. e6+ {[%clk 0:00:33.2]} 99...
Ke7 {[%clk 0:00:27.9]} 100. Ke5 {[%clk 0:00:34.7]} 100... Ke8 {[%clk 0:00:29.1]}
101. Kd5 {[%clk 0:00:35.8]} 101... Ke7 {[%clk 0:00:29.9]} 102. Ke5 {[%clk
0:00:36.7]} 102... Ke8 {[%clk 0:00:30.9]} 103. Kf6 {[%clk 0:00:38.2]} 103... Kf8
{[%clk 0:00:31.7]} 104. Kg6 {[%clk 0:00:39.7]} 104... Ke7 {[%clk 0:00:32.4]}
105. Kf5 {[%clk 0:00:41.4]} 105... Ke8 {[%clk 0:00:33.6]} 106. Kf6 {[%clk
0:00:42.9]} 106... Kf8 {[%clk 0:00:34.6]} 107. e7+ {[%clk 0:00:44.5]} 107... Ke8
{[%clk 0:00:35.7]} 108. Ke6 {[%clk 0:00:46]} 1/2-1/2

[Event "*** Titled Tuesday Blitz"]
[Site "Chess.com"]
[Date "2020.02.04"]
[Round "5"]
[White "INLOVEWITHF"]
[Black "IMRosen"]
[Result "1-0"]
[WhiteElo "2353"]
[BlackElo "2534"]
[TimeControl "180+2"]
[EndTime "14:10:24 PST"]
[Termination "INLOVEWITHF won by resignation"]

1. d4 {[%clk 0:03:01.9]} 1... d5 {[%clk 0:02:59.8]} 2. c4 {[%clk 0:03:02.4]}
2... e6 {[%clk 0:03:00.5]} 3. Nf3 {[%clk 0:02:59.7]} 3... Nf6 {[%clk 0:02:59.9]}
4. g3 {[%clk 0:03:01]} 4... dxc4 {[%clk 0:02:54.7]} 5. Bg2 {[%clk 0:03:00.4]}
5... Bb4+ {[%clk 0:02:53.1]} 6. Bd2 {[%clk 0:02:58.7]} 6... c5 {[%clk
0:02:54.2]} 7. O-O {[%clk 0:02:58.5]} 7... O-O {[%clk 0:02:54.7]} 8. a3 {[%clk
0:02:43.9]} 8... Bxd2 {[%clk 0:02:54.3]} 9. Nbxd2 {[%clk 0:02:45.5]} 9... cxd4
{[%clk 0:02:55.9]} 10. Nxc4 {[%clk 0:02:47]} 10... Nc6 {[%clk 0:02:57.5]} 11. b4
{[%clk 0:02:43.9]} 11... a6 {[%clk 0:02:57.9]} 12. Qd2 {[%clk 0:02:40]} 12...
Re8 {[%clk 0:02:57.6]} 13. Nfe5 {[%clk 0:02:39.7]} 13... Nxe5 {[%clk 0:02:51.5]}
14. Nxe5 {[%clk 0:02:41.6]} 14... Qd6 {[%clk 0:02:50.3]} 15. f4 {[%clk
0:02:39.2]} 15... Bd7 {[%clk 0:02:29.9]} 16. Rfd1 {[%clk 0:02:37.6]} 16... Ba4
{[%clk 0:02:16.6]} 17. Qxd4 {[%clk 0:02:35.7]} 17... Qe7 {[%clk 0:02:17.6]} 18.
Rdc1 {[%clk 0:02:28.1]} 18... Rad8 {[%clk 0:02:15.3]} 19. Qb6 {[%clk 0:02:28.3]}
19... Nd5 {[%clk 0:01:57.2]} 20. Qc5 {[%clk 0:02:25]} 20... Qxc5+ {[%clk
0:01:48.7]} 21. Rxc5 {[%clk 0:02:26.9]} 21... b6 {[%clk 0:01:50.4]} 22. Rcc1
{[%clk 0:02:22.8]} 22... f6 {[%clk 0:01:44.3]} 23. Nc6 {[%clk 0:02:21.8]} 23...
Rd6 {[%clk 0:01:35.3]} 24. Bxd5 {[%clk 0:01:26]} 24... exd5 {[%clk 0:01:17.2]}
25. Nd4 {[%clk 0:01:26.2]} 25... Re4 {[%clk 0:01:18.6]} 26. Rc8+ {[%clk
0:01:21.2]} 26... Kf7 {[%clk 0:01:19.7]} 27. Rc7+ {[%clk 0:01:19.9]} 27... Kf8
{[%clk 0:01:02]} 28. Rc8+ {[%clk 0:01:01.9]} 28... Kf7 {[%clk 0:01:03.3]} 29.
Rc7+ {[%clk 0:00:54.4]} 29... Kg6 {[%clk 0:00:21.3]} 30. Nf3 {[%clk 0:00:46.8]}
30... Rd7 {[%clk 0:00:22.5]} 31. Rxd7 {[%clk 0:00:43.2]} 31... Bxd7 {[%clk
0:00:24.1]} 32. Kf2 {[%clk 0:00:43.9]} 32... Bb5 {[%clk 0:00:24]} 33. e3 {[%clk
0:00:43.9]} 33... Bc4 {[%clk 0:00:21]} 34. Nd4 {[%clk 0:00:44.5]} 34... Re8
{[%clk 0:00:15.8]} 35. Rc1 {[%clk 0:00:42.9]} 35... Kf7 {[%clk 0:00:13.8]} 36.
h3 {[%clk 0:00:43.3]} 36... Ra8 {[%clk 0:00:13]} 37. Nf5 {[%clk 0:00:40.4]}
37... Rd8 {[%clk 0:00:12.1]} 38. Nd4 {[%clk 0:00:35.5]} 38... g6 {[%clk
0:00:13.4]} 39. g4 {[%clk 0:00:31.5]} 39... Rh8 {[%clk 0:00:09.4]} 40. Kg3
{[%clk 0:00:30.5]} 40... Ke7 {[%clk 0:00:07.1]} 41. Re1 {[%clk 0:00:29.7]} 41...
Kd6 {[%clk 0:00:06.2]} 42. h4 {[%clk 0:00:28.4]} 42... Re8 {[%clk 0:00:06.5]}
43. g5 {[%clk 0:00:27.1]} 43... Rf8 {[%clk 0:00:04.7]} 44. Rc1 {[%clk
0:00:21.2]} 44... Ke7 {[%clk 0:00:04.9]} 45. e4 {[%clk 0:00:21.4]} 45... b5
{[%clk 0:00:04.4]} 46. gxf6+ {[%clk 0:00:22.5]} 46... Kxf6 {[%clk 0:00:03.7]}
47. e5+ {[%clk 0:00:24.4]} 47... Ke7 {[%clk 0:00:04.4]} 48. h5 {[%clk
0:00:20.7]} 48... Rg8 {[%clk 0:00:04.2]} 49. hxg6 {[%clk 0:00:20.8]} 49... hxg6
{[%clk 0:00:05]} 50. Rh1 {[%clk 0:00:20.7]} 50... Rg7 {[%clk 0:00:04.3]} 51. Rh8
{[%clk 0:00:21.5]} 51... Kd7 {[%clk 0:00:02.5]} 52. Ra8 {[%clk 0:00:22.1]} 52...
Re7 {[%clk 0:00:02.8]} 53. Ra7+ {[%clk 0:00:22.7]} 53... Ke8 {[%clk 0:00:03.2]}
54. Rxa6 {[%clk 0:00:23.4]} 54... Kf7 {[%clk 0:00:04.8]} 55. Rf6+ {[%clk
0:00:23.9]} 55... Kg7 {[%clk 0:00:04.9]} 56. Ne6+ {[%clk 0:00:25.3]} 56... Kg8
{[%clk 0:00:03.7]} 57. Rxg6+ {[%clk 0:00:25.4]} 57... Kf7 {[%clk 0:00:04.6]} 58.
Rf6+ {[%clk 0:00:26.5]} 58... Ke8 {[%clk 0:00:04.4]} 59. Nd4 {[%clk 0:00:27.6]}
59... Rg7+ {[%clk 0:00:03.6]} 60. Kf3 {[%clk 0:00:28.7]} 60... Rg1 {[%clk
0:00:04.6]} 61. e6 {[%clk 0:00:26.4]} 61... Bd3 {[%clk 0:00:04.6]} 62. Nc6
{[%clk 0:00:25.4]} 62... Be4+ {[%clk 0:00:04.7]} 63. Ke3 {[%clk 0:00:24.4]}
63... Rc1 {[%clk 0:00:05.8]} 64. Nd4 {[%clk 0:00:24.6]} 64... Rc3+ {[%clk
0:00:06.1]} 65. Kf2 {[%clk 0:00:25.2]} 65... Rxa3 {[%clk 0:00:06.4]} 66. Nxb5
{[%clk 0:00:25.8]} 66... Rf3+ {[%clk 0:00:04.9]} 67. Ke2 {[%clk 0:00:25.3]}
67... Rb3 {[%clk 0:00:06]} 68. Nd6+ {[%clk 0:00:25.7]} 68... Ke7 {[%clk
0:00:06.6]} 69. Nxe4 {[%clk 0:00:24.2]} 69... dxe4 {[%clk 0:00:08.1]} 70. Rh6
{[%clk 0:00:20.1]} 70... Rxb4 {[%clk 0:00:05.9]} 71. Ke3 {[%clk 0:00:21.1]}
71... Kd6 {[%clk 0:00:07.4]} 72. f5 {[%clk 0:00:21]} 72... Ra4 {[%clk 0:00:03]}
73. Rh7 {[%clk 0:00:21.5]} 73... Rb4 {[%clk 0:00:02.6]} 74. Rd7+ {[%clk
0:00:22.2]} 74... Ke5 {[%clk 0:00:03.4]} 75. e7 {[%clk 0:00:22.9]} 75... Rb3+
{[%clk 0:00:04.4]} 76. Ke2 {[%clk 0:00:23.6]} 76... Rb2+ {[%clk 0:00:03.5]} 77.
Rd2 {[%clk 0:00:23.8]} 77... Rb8 {[%clk 0:00:04]} 78. Rd8 {[%clk 0:00:25.2]}
78... Rb2+ {[%clk 0:00:05.3]} 79. Ke1 {[%clk 0:00:26.1]} 79... Kf4 {[%clk
0:00:06.7]} 80. e8=Q {[%clk 0:00:26.4]} 80... Ke3 {[%clk 0:00:08.1]} 81. Kf1
{[%clk 0:00:25.7]} 81... Kf3 {[%clk 0:00:07.1]} 82. Qh5+ {[%clk 0:00:26]} 82...
Kf4 {[%clk 0:00:08.5]} 83. Qh6+ {[%clk 0:00:25.7]} 83... Kf3 {[%clk 0:00:08.8]}
84. Rd1 {[%clk 0:00:19.2]} 84... e3 {[%clk 0:00:08]} 85. Qh1+ {[%clk 0:00:16.2]}
85... Kg3 {[%clk 0:00:05.6]} 86. Qg1+ {[%clk 0:00:16.7]} 86... Kf3 {[%clk
0:00:06.6]} 87. Qh1+ {[%clk 0:00:17.6]} 87... Kg3 {[%clk 0:00:07.6]} 88. Re1
{[%clk 0:00:17.6]} 88... Rf2+ {[%clk 0:00:03.5]} 89. Kg1 {[%clk 0:00:18.7]}
89... e2 {[%clk 0:00:03]} 90. Qe4 {[%clk 0:00:15]} 90... Rf3 {[%clk 0:00:02.5]}
91. Qxe2 {[%clk 0:00:14.8]} 91... Rf4 {[%clk 0:00:03.1]} 92. Qg2+ {[%clk
0:00:15.4]} 92... Kh4 {[%clk 0:00:04.4]} 93. Qh2+ {[%clk 0:00:16.8]} 93... Kg4
{[%clk 0:00:05.5]} 94. Qxf4+ {[%clk 0:00:18.2]} 94... Kh3 {[%clk 0:00:06.3]} 95.
Qg3+ {[%clk 0:00:17.1]} 95... Kxg3 {[%clk 0:00:07.1]} 96. f6 {[%clk 0:00:18.8]}
1-0

[Event "*** Titled Tuesday Blitz"]
[Site "Chess.com"]
[Date "2020.02.04"]
[Round "6"]
[White "Firouzja2003"]
[Black "VladimirBelous"]
[Result "1-0"]
[WhiteElo "3145"]
[BlackElo "2747"]
[TimeControl "180+2"]
[EndTime "14:12:52 PST"]
[Termination "Firouzja2003 won by resignation"]

1. e4 {[%clk 0:02:58.2]} 1... c5 {[%clk 0:03:01.5]} 2. Nc3 {[%clk 0:02:59]} 2...
Nc6 {[%clk 0:03:02.7]} 3. Nge2 {[%clk 0:03:00.3]} 3... e6 {[%clk 0:03:00.7]} 4.
d4 {[%clk 0:03:01.7]} 4... cxd4 {[%clk 0:03:02]} 5. Nxd4 {[%clk 0:03:03.6]} 5...
Qc7 {[%clk 0:03:03.1]} 6. Be3 {[%clk 0:03:05.2]} 6... Nf6 {[%clk 0:03:04]} 7.
Qf3 {[%clk 0:03:06.8]} 7... a6 {[%clk 0:02:57.5]} 8. O-O-O {[%clk 0:03:07.2]}
8... b5 {[%clk 0:02:53.6]} 9. Nxc6 {[%clk 0:03:05.1]} 9... Qxc6 {[%clk
0:02:51.7]} 10. e5 {[%clk 0:02:56.2]} 10... Qxf3 {[%clk 0:02:47.2]} 11. gxf3
{[%clk 0:02:58.1]} 11... b4 {[%clk 0:02:45.3]} 12. Na4 {[%clk 0:02:56.7]} 12...
Nd5 {[%clk 0:02:45.6]} 13. Rxd5 {[%clk 0:02:52.1]} 13... exd5 {[%clk 0:02:46.6]}
14. Nb6 {[%clk 0:02:54]} 14... Rb8 {[%clk 0:02:47]} 15. Nxc8 {[%clk 0:02:49.8]}
15... Rxc8 {[%clk 0:02:46.1]} 16. Bxa6 {[%clk 0:02:51.7]} 16... Ra8 {[%clk
0:02:45.9]} 17. Bb7 {[%clk 0:02:52.9]} 17... Rxa2 {[%clk 0:02:46.5]} 18. Kb1
{[%clk 0:02:54.5]} 18... Ra5 {[%clk 0:02:47.2]} 19. Rd1 {[%clk 0:02:55.7]} 19...
Bc5 {[%clk 0:02:43.6]} 20. Rxd5 {[%clk 0:02:56.3]} 20... Rb5 {[%clk 0:02:26.9]}
21. Rxc5 {[%clk 0:02:54.6]} 1-0

[Event "*** Titled Tuesday Blitz"]
[Site "Chess.com"]
[Date "2020.02.04"]
[Round "6"]
[White "Fy_Rakotomaharo"]
[Black "icychess54"]
[Result "1-0"]
[WhiteElo "2562"]
[BlackElo "2402"]
[TimeControl "180+2"]
[EndTime "14:14:24 PST"]
[Termination "Fy_Rakotomaharo won by resignation"]

1. d4 {[%clk 0:03:01.9]} 1... d5 {[%clk 0:03:01.1]} 2. c4 {[%clk 0:03:02.6]}
2... c6 {[%clk 0:03:02]} 3. Nc3 {[%clk 0:03:03.6]} 3... Nf6 {[%clk 0:03:03.3]}
4. e3 {[%clk 0:03:04.8]} 4... e6 {[%clk 0:03:04.8]} 5. Nf3 {[%clk 0:03:03.1]}
5... Nbd7 {[%clk 0:03:06.2]} 6. Qc2 {[%clk 0:03:03.5]} 6... Be7 {[%clk
0:03:05.2]} 7. b3 {[%clk 0:03:04.5]} 7... O-O {[%clk 0:03:05.8]} 8. Bd3 {[%clk
0:03:04.7]} 8... b6 {[%clk 0:03:06.5]} 9. O-O {[%clk 0:03:05.3]} 9... Bb7 {[%clk
0:03:07.9]} 10. Bb2 {[%clk 0:03:01.6]} 10... Rc8 {[%clk 0:03:08.7]} 11. Rad1
{[%clk 0:02:59.6]} 11... Qc7 {[%clk 0:03:07.2]} 12. Ne5 {[%clk 0:02:57.5]} 12...
Nxe5 {[%clk 0:03:03.2]} 13. dxe5 {[%clk 0:02:58.5]} 13... dxc4 {[%clk
0:02:50.6]} 14. bxc4 {[%clk 0:02:51.6]} 14... Qxe5 {[%clk 0:02:29.1]} 15. Nd5
{[%clk 0:02:49.5]} 15... Qd6 {[%clk 0:01:34.5]} 16. Nxf6+ {[%clk 0:02:50.4]}
16... gxf6 {[%clk 0:01:35.9]} 17. Bxh7+ {[%clk 0:02:51.2]} 17... Kg7 {[%clk
0:01:37.6]} 18. Rxd6 {[%clk 0:02:52.5]} 18... Bxd6 {[%clk 0:01:39.5]} 19. Rd1
{[%clk 0:02:48.2]} 19... Rcd8 {[%clk 0:01:31.6]} 20. Rd4 {[%clk 0:02:40.5]} 1-0

[Event "*** Titled Tuesday Blitz"]
[Site "Chess.com"]
[Date "2020.02.04"]
[Round "6"]
[White "norwaytoadog"]
[Black "ZenBull"]
[Result "1-0"]
[WhiteElo "2294"]
[BlackElo "2113"]
[TimeControl "180+2"]
[EndTime "14:14:38 PST"]
[Termination "norwaytoadog won by resignation"]

1. e4 {[%clk 0:03:01.9]} 1... c5 {[%clk 0:02:58.6]} 2. Nf3 {[%clk 0:03:02.9]}
2... e6 {[%clk 0:02:59.7]} 3. d4 {[%clk 0:03:03.7]} 3... cxd4 {[%clk 0:03:01]}
4. Nxd4 {[%clk 0:03:05.1]} 4... Nc6 {[%clk 0:03:02.4]} 5. Nc3 {[%clk 0:03:06]}
5... Qc7 {[%clk 0:03:03.5]} 6. g3 {[%clk 0:03:07.2]} 6... a6 {[%clk 0:03:04.4]}
7. Bg2 {[%clk 0:03:08]} 7... h5 {[%clk 0:03:05.6]} 8. O-O {[%clk 0:03:03.7]}
8... h4 {[%clk 0:03:05.6]} 9. Re1 {[%clk 0:03:03.9]} 9... Nf6 {[%clk 0:03:00.6]}
10. Nd5 {[%clk 0:02:51.3]} 10... Qb8 {[%clk 0:02:35.4]} 11. Bf4 {[%clk
0:02:46.2]} 11... d6 {[%clk 0:02:28.9]} 12. Nb6 {[%clk 0:02:43]} 12... Ra7
{[%clk 0:02:26.7]} 13. Nxc6 {[%clk 0:02:28.8]} 13... bxc6 {[%clk 0:02:26.1]} 14.
Nxc8 {[%clk 0:02:29.1]} 14... Qxc8 {[%clk 0:02:27.6]} 15. Bxd6 {[%clk
0:02:26.8]} 15... Rd7 {[%clk 0:02:17.5]} 16. e5 {[%clk 0:02:23.8]} 16... hxg3
{[%clk 0:02:11]} 17. hxg3 {[%clk 0:02:18.2]} 17... Nd5 {[%clk 0:01:38.1]} 18. c4
{[%clk 0:02:14.3]} 18... Nc7 {[%clk 0:01:23.2]} 19. Bxc6 {[%clk 0:02:08.8]} 1-0

[Event "*** Titled Tuesday Blitz"]
[Site "Chess.com"]
[Date "2020.02.04"]
[Round "6"]
[White "TwentyHourADay"]
[Black "olksuna"]
[Result "0-1"]
[WhiteElo "2263"]
[BlackElo "2585"]
[TimeControl "180+2"]
[EndTime "14:14:46 PST"]
[Termination "olksuna won by resignation"]

1. Nf3 {[%clk 0:03:01.9]} 1... d5 {[%clk 0:01:19.3]} 2. g3 {[%clk 0:03:01.4]}
2... Nf6 {[%clk 0:01:19.6]} 3. Bg2 {[%clk 0:03:02.3]} 3... Bf5 {[%clk
0:01:21.3]} 4. c4 {[%clk 0:03:02.6]} 4... e6 {[%clk 0:01:22.3]} 5. d4 {[%clk
0:03:02]} 5... c6 {[%clk 0:01:23.1]} 6. Nc3 {[%clk 0:03:02.1]} 6... Nbd7 {[%clk
0:01:24.1]} 7. Nh4 {[%clk 0:03:02.8]} 7... Bg4 {[%clk 0:01:24.8]} 8. h3 {[%clk
0:03:03.9]} 8... Bh5 {[%clk 0:01:26.2]} 9. g4 {[%clk 0:03:04.9]} 9... Bg6 {[%clk
0:01:27.5]} 10. Nxg6 {[%clk 0:03:04.3]} 10... hxg6 {[%clk 0:01:29.4]} 11. cxd5
{[%clk 0:03:00.9]} 11... exd5 {[%clk 0:01:29.4]} 12. Bf4 {[%clk 0:02:59.5]}
12... Be7 {[%clk 0:01:28.6]} 13. O-O {[%clk 0:02:59.3]} 13... O-O {[%clk
0:01:29.6]} 14. Qd3 {[%clk 0:02:58]} 14... Re8 {[%clk 0:01:30.7]} 15. Rfe1
{[%clk 0:02:58.7]} 15... Nf8 {[%clk 0:01:31.8]} 16. e4 {[%clk 0:02:57.7]} 16...
dxe4 {[%clk 0:01:31.3]} 17. Nxe4 {[%clk 0:02:56.8]} 17... Ne6 {[%clk 0:01:32.5]}
18. Be5 {[%clk 0:02:56.9]} 18... Nd5 {[%clk 0:01:32.5]} 19. a3 {[%clk
0:02:52.8]} 19... Bf8 {[%clk 0:01:27.7]} 20. Qd2 {[%clk 0:02:50.9]} 20... g5
{[%clk 0:01:24.5]} 21. Nc3 {[%clk 0:02:44.7]} 21... Ndf4 {[%clk 0:01:20.5]} 22.
Re4 {[%clk 0:02:42.9]} 22... Nxg2 {[%clk 0:01:13]} 23. Kxg2 {[%clk 0:02:43.6]}
23... Nc5 {[%clk 0:01:14.5]} 24. Ree1 {[%clk 0:02:36.1]} 24... Nb3 {[%clk
0:01:15.9]} 25. Qc2 {[%clk 0:02:36.8]} 25... Nxa1 {[%clk 0:01:16.8]} 26. Rxa1
{[%clk 0:02:37.8]} 26... f6 {[%clk 0:01:18.2]} 0-1

[Event "*** Titled Tuesday Blitz"]
[Site "Chess.com"]
[Date "2020.02.04"]
[Round "6"]
[White "Lagmantr"]
[Black "LogoCzar"]
[Result "1-0"]
[WhiteElo "2739"]
[BlackElo "2514"]
[TimeControl "180+2"]
[EndTime "14:15:01 PST"]
[Termination "Lagmantr won by checkmate"]

1. e4 {[%clk 0:03:01.2]} 1... e5 {[%clk 0:03:01.3]} 2. Nf3 {[%clk 0:03:02.7]}
2... Nc6 {[%clk 0:03:02.5]} 3. Nc3 {[%clk 0:03:04.2]} 3... Nf6 {[%clk
0:03:02.8]} 4. Be2 {[%clk 0:03:03.2]} 4... Bc5 {[%clk 0:03:02.6]} 5. Nxe5 {[%clk
0:02:59.9]} 5... Nxe5 {[%clk 0:03:03]} 6. d4 {[%clk 0:03:01.1]} 6... Bd6 {[%clk
0:03:04.4]} 7. dxe5 {[%clk 0:03:01.9]} 7... Bxe5 {[%clk 0:03:06]} 8. Nb5 {[%clk
0:03:03.7]} 8... c6 {[%clk 0:02:52.8]} 9. f4 {[%clk 0:03:02.3]} 9... Bb8 {[%clk
0:02:38.2]} 10. Nd6+ {[%clk 0:02:50.6]} 10... Bxd6 {[%clk 0:02:37.2]} 11. Qxd6
{[%clk 0:02:52.5]} 11... Nxe4 {[%clk 0:02:36.9]} 12. Qe5+ {[%clk 0:02:53.5]}
12... Qe7 {[%clk 0:02:37.2]} 13. Qxg7 {[%clk 0:02:54.5]} 13... Qf6 {[%clk
0:02:36]} 14. Qxf6 {[%clk 0:02:54.9]} 14... Nxf6 {[%clk 0:02:37.3]} 15. Be3
{[%clk 0:02:53.7]} 15... d5 {[%clk 0:02:36.9]} 16. Bd4 {[%clk 0:02:54.3]} 16...
Ke7 {[%clk 0:02:36.3]} 17. O-O-O {[%clk 0:02:55.1]} 17... Re8 {[%clk 0:02:33.1]}
18. Rhe1 {[%clk 0:02:25.6]} 18... Ne4 {[%clk 0:02:30.3]} 19. Bd3 {[%clk
0:02:25.9]} 19... f5 {[%clk 0:02:31.3]} 20. g4 {[%clk 0:02:12.6]} 20... Kf7
{[%clk 0:02:31.4]} 21. g5 {[%clk 0:02:12]} 21... Bd7 {[%clk 0:02:27.9]} 22. h4
{[%clk 0:02:13]} 22... Kg6 {[%clk 0:02:19.8]} 23. h5+ {[%clk 0:02:11.8]} 23...
Kxh5 {[%clk 0:02:19]} 24. Rh1+ {[%clk 0:02:12.1]} 24... Kg4 {[%clk 0:02:17]} 25.
Rxh7 {[%clk 0:02:05.1]} 25... Be6 {[%clk 0:02:10.7]} 26. Be5 {[%clk 0:01:53.5]}
26... Nf2 {[%clk 0:02:06.5]} 27. Be2+ {[%clk 0:01:54.2]} 27... Kg3 {[%clk
0:02:04.4]} 28. Rg1# {[%clk 0:01:56.1]} 1-0